[Event "32nd NATO Championship 2022"]
[Site "Tartu"]
[Date "2022.06.30"]
[Round "6.26"]
[White "Ivsek, Cveto"]
[Black "Hater, David"]
[Result "1/2-1/2"]
[ECO "D82"]
[WhiteElo "1766"]
[BlackElo "1944"]
[Annotator "NA RC"]
[PlyCount "54"]
[EventDate "2022.06.27"]
[EventType "swiss"]
[EventCountry "EST"]
[SourceTitle "playchess.com"]
[Source "ChessBase"]
[SourceQuality "1"]
[TimeControl "5400+30"]

1. d4 {[%emt 0:00:06]} Nf6 {[%emt 0:00:08]} 2. Bf4 {[%emt 0:00:46]} g6 {[%emt 0:00:21]} 3. e3 {[%emt 0:01:56]} Bg7 {[%emt 0:00:27]} 4. c4 {[%emt 0:03:43]} d5 {[%emt 0:02:43]} 5. Nc3 {[%emt 0:02:23]} c5 {[%emt 0:01:32]} 6. Bxb8 {[%emt 0:04:06]} (6. dxc5 $142 Qa5 7. Rc1 (7. cxd5 Nxd5 8. Qxd5 Bxc3+ 9. bxc3 Qxc3+ 10. Ke2 Qxa1 $11)) 6... Rxb8 {[%emt 0:00:25]} 7. dxc5 {[%emt 0:01:44]} Qa5 {[%emt 0:02:28]} 8. Qa4+ {[%emt 0:02:55]} (8. Rc1 $11) 8... Qxa4 {[%emt 0:00:06]} 9. Nxa4 {[%emt 0:00:51]} Bd7 {[%emt 0:06:01]} 10. Nc3 {[%emt 0:01:36]} dxc4 {[%emt 0:02:48]} 11. Nf3 {[%emt 0:06:16]} Rc8 {[%emt 0:07:54]} 12. Bxc4 {[%emt 0:01:00]} Rxc5 {[%emt 0:00:52]} 13. Bb3 {[%emt 0:01:08]} Bc6 {[%emt 0:04:29]} 14. O-O {[%emt 0:09:22]} Bxf3 {[%emt 0:09:42]} 15. gxf3 {[%emt 0:00:09]} Nd7 {[%emt 0:04:01]} 16. Ne4 {[%emt 0:04:53]} Rc8 {[%emt 0:04:43]} 17. Rab1 {[%emt 0:02:18]} O-O {[%emt 0:00:28]} 18. Rfd1 {[%emt 0:02:37]} Rfd8 $14 {[%emt 0:05:19]} (18... Nf6 $11) 19. Ng5 {[%emt 0:04:24]} Ne5 {[%emt 0:07:26]} 20. f4 {[%emt 0:17:24]} h6 {[%emt 0:11:58]} 21. fxe5 {[%emt 0:04:21]} hxg5 {[%emt 0:00:11]} 22. e6 {[%emt 0:02:20]} Rxd1+ {[%emt 0:13:05]} 23. Rxd1 {[%emt 0:00:22]} Bxb2 {[%emt 0:00:13]} 24. exf7+ {[%emt 0:01:08]} Kf8 {[%emt 0:00:07]} 25. Rd7 {[%emt 0:01:44]} Rb8 {[%emt 0:00:11]} 26. Kg2 {[%emt 0:01:40]} Bf6 {[%emt 0:00:36]} 27. h3 {[%emt 0:00:19]} a5 {[%emt 0:00:13]} 1/2-1/2

[Event "32nd NATO Championship 2022"]
[Site "Tartu"]
[Date "2022.06.30"]
[Round "6.29"]
[White "Heran-Boily, Samuel"]
[Black "Van den Heuvel, Tonnie"]
[Result "1/2-1/2"]
[ECO "B07"]
[WhiteElo "1871"]
[BlackElo "1799"]
[Annotator "NA RC"]
[PlyCount "63"]
[EventDate "2022.06.27"]
[EventType "swiss"]
[EventCountry "EST"]
[SourceTitle "playchess.com"]
[Source "ChessBase"]
[SourceQuality "1"]
[TimeControl "5400+30"]

1. e4 {[%emt 0:00:19]} d6 {[%emt 0:00:27]} 2. d4 {[%emt 0:00:22]} Nf6 {[%emt 0:01:21]} 3. Nc3 {[%emt 0:00:26]} Nbd7 {[%emt 0:01:52]} 4. f4 {[%emt 0:05:03]} e5 {[%emt 0:05:48]} 5. Nf3 {[%emt 0:01:05]} exd4 {[%emt 0:01:02]} 6. Nxd4 {[%emt 0:03:48]} Nc5 {[%emt 0:01:00]} 7. Bd3 {[%emt 0:05:27]} Bg4 {[%emt 0:01:21]} 8. Nf3 {[%emt 0:01:06]} Be7 {[%emt 0:06:13]} 9. O-O {[%emt 0:01:46]} O-O {[%emt 0:01:11]} 10. h3 {[%emt 0:02:42]} Bxf3 {[%emt 0:03:11]} 11. Qxf3 {[%emt 0:02:22]} Nxd3 {[%emt 0:00:16]} 12. cxd3 {[%emt 0:01:00]} c6 {[%emt 0:00:07]} 13. Be3 {[%emt 0:02:18]} Qa5 {[%emt 0:01:41]} 14. a3 {[%emt 0:04:31]} Nd7 {[%emt 0:03:16]} 15. b4 {[%emt 0:03:08]} Qa6 {[%emt 0:00:49]} 16. d4 {[%emt 0:02:47]} (16. Bf2 $16) 16... Nb6 {[%emt 0:02:16]} 17. Ne2 $11 {[%emt 0:05:06]} ({Better is} 17. Bf2 $14) 17... Rae8 {[%emt 0:04:55]} 18. Ng3 {[%emt 0:03:13]} Nc4 {[%emt 0:02:09]} 19. Bc1 {[%emt 0:07:15]} Qb6 {[%emt 0:08:32]} 20. Qd3 {[%emt 0:06:24]} d5 {[%emt 0:07:41]} 21. Kh1 {[%emt 0:02:27]} a5 {[%emt 0:02:37]} 22. f5 {[%emt 0:06:27]} f6 {[%emt 0:01:18]} 23. Nh5 {[%emt 0:01:29]} Bd6 {[%emt 0:01:05]} 24. bxa5 {[%emt 0:05:09]} Qc7 {[%emt 0:02:35]} 25. Nf4 {[%emt 0:02:54]} Bxf4 {[%emt 0:02:04]} 26. Bxf4 {[%emt 0:00:12]} Qxa5 {[%emt 0:00:35]} 27. exd5 {[%emt 0:01:31]} Qxd5 {[%emt 0:00:58]} 28. Rac1 {[%emt 0:02:12]} b5 {[%emt 0:01:32]} 29. a4 {[%emt 0:02:51]} Re4 {[%emt 0:01:24]} 30. axb5 {[%emt 0:03:05]} cxb5 {[%emt 0:00:56]} 31. Qb3 {[%emt 0:01:10]} Ra8 {[%emt 0:08:17]} 32. Rb1 {[%emt 0:01:11]} 1/2-1/2

[Event "32nd NATO Championship 2022"]
[Site "Tartu"]
[Date "2022.06.30"]
[Round "6.30"]
[White "O`Byrne, Daniel"]
[Black "Nielsen, Jan Mose"]
[Result "1/2-1/2"]
[ECO "A43"]
[WhiteElo "1664"]
[BlackElo "1991"]
[Annotator "NA RC"]
[PlyCount "50"]
[EventDate "2022.06.27"]
[EventType "swiss"]
[EventCountry "EST"]
[SourceTitle "playchess.com"]
[Source "ChessBase"]
[SourceQuality "1"]
[TimeControl "5400+30"]

1. d4 c5 2. c3 Qc7 3. g3 e6 4. Bg2 d5 5. Bf4 Qb6 6. Qc2 cxd4 7. cxd4 Na6 8. Nf3 Bd7 9. a3 Nf6 10. O-O Be7 11. Nc3 O-O {[%emt 1:36:00]} 12. Qd2 {[%emt 0:05:54]} Qb3 {[%emt 0:00:30]} 13. Ne5 {[%emt 0:00:30]} Rfd8 {[%emt 0:00:30]} 14. Rfd1 {[%emt 0:00:30]} Be8 {[%emt 0:00:30]} 15. Rab1 {[%emt 0:00:30]} Rac8 {[%emt 0:00:30]} 16. Qe3 {[%emt 0:00:30]} Qb6 {[%emt 0:00:30]} 17. b4 {[%emt 0:00:30]} Nh5 {[%emt 0:00:30]} 18. Bf3 {[%emt 0:00:30]} Nxf4 {[%emt 0:00:30]} 19. Qxf4 {[%emt 0:00:30]} f6 {[%emt 0:00:30]} 20. Nd3 {[%emt 0:00:30]} Rc4 {[%emt 0:00:30]} 21. Nc5 {[%emt 0:00:30]} Bg6 {[%emt 0:00:30]} 22. Ra1 {[%emt 0:00:30]} Nxc5 {[%emt 0:00:30]} 23. bxc5 {[%emt 0:00:30]} Qa5 {[%emt 0:00:30]} 24. Qe3 {[%emt 0:00:30]} Kf7 {[%emt 0:00:30]} 25. Kg2 {[%emt 0:12:24]} Qa6 {[%emt 0:00:30]} 1/2-1/2

[Event "32nd NATO Championship 2022"]
[Site "Tartu"]
[Date "2022.06.30"]
[Round "6.31"]
[White "Kocur, Marc"]
[Black "Stuhr, Finn"]
[Result "1-0"]
[ECO "A45"]
[WhiteElo "1829"]
[BlackElo "1667"]
[Annotator "NA RC"]
[PlyCount "63"]
[EventDate "2022.06.27"]
[EventType "swiss"]
[EventCountry "EST"]
[SourceTitle "playchess.com"]
[Source "ChessBase"]
[SourceQuality "1"]
[TimeControl "5400+30"]

1. d4 {[%emt 0:00:07]} Nf6 {[%emt 0:00:06]} 2. Bf4 {[%emt 0:00:08]} d6 {[%emt 0:00:33]} 3. Nc3 {[%emt 0:00:26]} e6 {[%emt 0:00:29]} 4. e4 {[%emt 0:00:28]} Nbd7 {[%emt 0:00:24]} 5. e5 {[%emt 0:04:38]} Ng8 {[%emt 0:02:55]} 6. Nf3 {[%emt 0:03:08]} dxe5 {[%emt 0:00:51]} 7. dxe5 {[%emt 0:00:56]} Bb4 {[%emt 0:00:31]} 8. Bg5 {[%emt 0:03:25]} Ne7 {[%emt 0:00:13]} 9. Qd4 {[%emt 0:00:57]} c5 {[%emt 0:00:40]} 10. Qd3 {[%emt 0:10:23]} Qc7 $14 {[%emt 0:04:06]} (10... b5 $11) 11. O-O-O {[%emt 0:08:51]} c4 {[%emt 0:00:34] [#]} 12. Nb5 $1 {[%emt 0:04:44]} ({Not} 12. Qxc4 Qxc4 13. Bxc4 Bxc3 $14) 12... cxd3 {[%emt 0:04:04]} 13. Nxc7+ {[%emt 0:00:54]} Kf8 {[%emt 0:00:05]} 14. Bxe7+ {[%emt 0:00:50]} Kxe7 {[%emt 0:00:19]} 15. Nxa8 {[%emt 0:00:13]} dxc2 {[%emt 0:00:21]} 16. Kxc2 {[%emt 0:04:14]} Ba5 {[%emt 0:00:30]} 17. a3 {[%emt 0:01:40]} f6 {[%emt 0:01:03]} 18. b4 {[%emt 0:00:55]} Bd8 {[%emt 0:00:01]} 19. Rd2 {[%emt 0:05:02]} a6 {[%emt 0:01:46]} 20. Be2 {[%emt 0:01:02]} b5 {[%emt 0:01:39]} 21. Rhd1 {[%emt 0:00:31]} Nb8 {[%emt 0:01:30]} 22. exf6+ {[%emt 0:02:17]} gxf6 {[%emt 1:18:50]} 23. Ne1 {[%emt 0:46:11]} Bb7 {[%emt 0:00:00]} 24. Bf3 {[%emt 0:00:00]} Bc8 {[%emt 0:00:00]} 25. Nd3 {[%emt 0:00:00]} e5 {[%emt 0:01:30]} 26. Nc5 {[%emt 0:01:30]} f5 {[%emt 0:00:00]} 27. Nb7 {[%emt 0:00:00]} e4 {[%emt 0:00:00]} 28. Rxd8 {[%emt 0:00:00]} Rxd8 {[%emt 0:01:30]} 29. Nxd8 {[%emt 0:01:30]} exf3 {[%emt 0:00:00]} 30. Nb6 {[%emt 0:00:00]} Bd7 {[%emt 0:00:00]} 31. Nxd7 {[%emt 0:00:00]} Nxd7 {[%emt 0:00:00]} 32. Nc6+ 1-0

[Event "32nd NATO Championship 2022"]
[Site "Tartu"]
[Date "2022.06.30"]
[Round "6.40"]
[White "Adolfssen, Rico"]
[Black "Papler, Peter"]
[Result "0-1"]
[ECO "C41"]
[WhiteElo "1837"]
[BlackElo "1714"]
[Annotator "NA RC"]
[PlyCount "80"]
[EventDate "2022.06.27"]
[EventType "swiss"]
[EventCountry "EST"]
[SourceTitle "playchess.com"]
[Source "ChessBase"]
[SourceQuality "1"]
[TimeControl "5400+30"]

1. e4 {[%emt 0:00:07]} d6 {[%emt 0:00:06]} 2. d4 {[%emt 0:00:34]} Nf6 {[%emt 0:00:08]} 3. Nc3 {[%emt 0:00:54]} Nbd7 {[%emt 0:00:18]} 4. Bc4 {[%emt 0:02:12]} e5 {[%emt 1:31:58]} 5. Nf3 {[%emt 0:02:14]} Be7 {[%emt 0:00:00]} 6. O-O {[%emt 0:04:37]} O-O {[%emt 0:00:00]} 7. Qe2 {[%emt 0:03:43]} c6 {[%emt 0:00:00]} 8. Rd1 {[%emt 0:05:34]} Qc7 {[%emt 0:00:00]} 9. Bb3 {[%emt 0:04:18]} ({Better is} 9. a4 $1 $14) 9... a6 {[%emt 0:00:00]} 10. a4 {[%emt 0:03:49]} b6 {[%emt 0:00:00]} 11. Nh4 {[%emt 0:10:13]} (11. Bg5 $14) 11... Re8 {[%emt 0:00:00]} (11... exd4 $11 12. Nf5 Nc5 13. Nxd4 Nxb3 14. Nxb3 Nd7) 12. Qc4 {[%emt 0:10:40]} Rf8 {[%emt 0:00:00]} (12... d5 $1 $11 {remains equal.} 13. exd5 exd4 14. Qxd4 (14. dxc6 Ne5 $15) 14... Bc5) 13. Nf5 {[%emt 0:02:41]} Bd8 {[%emt 0:00:00]} (13... Nb8 $142) 14. Qd3 {[%emt 0:04:27]} Bb7 {[%emt 0:00:00]} 15. Bh6 {[%emt 0:04:53]} Ne8 {[%emt 0:00:00]} 16. Qg3 {[%emt 0:05:30]} Bf6 {[%emt 0:00:00]} 17. Be3 {[%emt 0:02:36]} Kh8 {[%emt 0:00:00]} 18. dxe5 $16 {[%emt 0:03:43]} Nxe5 {[%emt 0:00:00]} 19. Rd2 {[%emt 0:02:44]} Rd8 {[%emt 0:00:00]} 20. Rad1 {[%emt 0:00:29]} Bc8 {[%emt 0:00:00]} 21. Bg5 {[%emt 0:04:34]} Bxf5 {[%emt 0:00:00]} 22. exf5 {[%emt 0:02:45]} Bxg5 {[%emt 0:00:00]} 23. Qxg5 {[%emt 0:00:08]} Nf6 {[%emt 0:00:00]} 24. f4 {[%emt 0:19:05]} Neg4 {[%emt 0:00:00]} 25. Rd3 {[%emt 0:00:00]} b5 {[%emt 0:00:00]} 26. Qh4 {[%emt 0:00:00]} Qa7+ {[%emt 0:00:00]} 27. Kf1 {[%emt 0:00:00]} Ne3+ {[%emt 0:00:00]} 28. Rxe3 {[%emt 0:00:00]} Qxe3 {[%emt 0:00:00]} 29. axb5 {[%emt 0:00:00]} axb5 {[%emt 0:00:00]} 30. Re1 {[%emt 0:00:00]} Qc5 {[%emt 0:00:00]} 31. g4 {[%emt 0:00:00]} d5 {[%emt 0:00:00]} 32. g5 {[%emt 0:00:00]} Ne4 {[%emt 0:00:00]} 33. Nxe4 {[%emt 0:00:00]} dxe4 {[%emt 0:00:00]} 34. g6 {[%emt 0:00:00]} h6 {[%emt 0:00:00]} 35. gxf7 {[%emt 0:00:00]} Qxf5 {[%emt 0:00:00]} 36. Qf2 {[%emt 0:01:05]} c5 {[%emt 0:00:00]} 37. c4 {[%emt 0:00:33]} Qh3+ {[%emt 0:00:00]} 38. Qg2 {[%emt 0:00:32]} Qxb3 {[%emt 0:00:00]} 39. Rxe4 {[%emt 0:05:20]} Rd1+ {[%emt 0:00:00]} 40. Re1 {[%emt 0:00:00]} Qxc4+ {[%emt 0:00:00]} 0-1

[Event "32nd NATO Championship 2022"]
[Site "Tartu"]
[Date "2022.06.30"]
[Round "6.44"]
[White "Korge, Kersti"]
[Black "Lambruschini, Alex"]
[Result "1/2-1/2"]
[ECO "A15"]
[WhiteElo "1864"]
[BlackElo "1807"]
[Annotator "NA RC"]
[PlyCount "156"]
[EventDate "2022.06.27"]
[EventType "swiss"]
[EventCountry "EST"]
[SourceTitle "playchess.com"]
[Source "ChessBase"]
[SourceQuality "1"]
[TimeControl "5400+30"]

1. b4 {[%emt 0:00:30]} d5 {[%emt 0:02:15]} 2. Bb2 {[%emt 0:00:00]} Nf6 {[%emt 0:01:37]} 3. e3 {[%emt 0:00:04]} g6 {[%emt 0:09:19]} 4. c4 {[%emt 0:01:30]} Bg7 {[%emt 0:01:34]} 5. Nf3 {[%emt 0:00:15]} O-O {[%emt 0:01:00]} 6. d4 {[%emt 0:02:06]} Bg4 {[%emt 0:12:38]} 7. Nbd2 {[%emt 0:00:25]} e6 {[%emt 0:09:14]} 8. Be2 {[%emt 0:01:24]} Qe7 {[%emt 0:02:13]} 9. c5 {[%emt 0:02:26]} c6 {[%emt 0:06:01]} 10. O-O {[%emt 0:00:22]} Nbd7 {[%emt 0:00:35]} 11. a4 {[%emt 0:06:16]} Ne4 {[%emt 0:05:25]} 12. Nxe4 {[%emt 0:00:40]} dxe4 {[%emt 0:00:11]} 13. Nd2 {[%emt 0:00:24]} Bxe2 {[%emt 0:00:19]} 14. Qxe2 {[%emt 0:00:05]} f5 {[%emt 0:00:27]} 15. Nc4 {[%emt 0:02:21]} Nf6 {[%emt 0:02:35]} 16. Nd6 {[%emt 0:01:24]} Nd5 {[%emt 0:00:50]} 17. Qc4 {[%emt 0:00:22]} Qd7 {[%emt 0:03:07]} 18. Qb3 {[%emt 0:06:25]} Rfb8 {[%emt 0:01:11]} 19. Nc4 {[%emt 0:01:34]} h6 {[%emt 0:04:51]} 20. b5 {[%emt 0:02:24]} Kh7 {[%emt 0:04:42]} (20... b6 $5 {[%cal Rb6c5]}) 21. b6 $11 {[%emt 0:02:45]} axb6 {[%emt 0:09:02]} 22. Nxb6 {[%emt 0:00:11]} Nxb6 {[%emt 0:00:07]} 23. cxb6 {[%emt 0:00:37]} Qd5 {[%emt 0:02:20]} 24. Qxd5 {[%emt 0:00:49]} exd5 {[%emt 0:00:18]} 25. Bc3 {[%emt 0:00:56]} Ra6 {[%emt 0:01:52]} 26. a5 {[%emt 0:01:05]} c5 {[%emt 0:02:29]} 27. Rfc1 {[%emt 0:02:32]} c4 {[%emt 0:00:20]} 28. Rcb1 {[%emt 0:00:59]} Rd8 {[%emt 0:04:49]} 29. Rb5 {[%emt 0:01:02]} Bf8 {[%emt 0:00:57]} 30. Kf1 {[%emt 0:00:24]} Kg8 {[%emt 0:01:02]} 31. Ke2 {[%emt 0:00:37]} Kf7 {[%emt 0:00:22]} 32. Kd2 {[%emt 0:00:58]} Ke6 {[%emt 0:00:11]} 33. Kc2 {[%emt 0:01:03]} Rc8 {[%emt 0:03:43]} 34. Rab1 {[%emt 0:01:03]} Be7 {[%emt 0:01:28]} 35. f3 {[%emt 0:05:24]} Rc6 {[%emt 0:05:49]} 36. fxe4 {[%emt 0:01:24]} fxe4 {[%emt 0:00:14]} 37. Rf1 {[%emt 0:01:43]} Ra8 {[%emt 0:00:32]} 38. Rbb1 {[%emt 0:04:40]} Rcc8 {[%emt 0:02:41]} 39. Rf2 {[%emt 0:01:33]} Rf8 {[%emt 0:00:16]} 40. Rbf1 {[%emt 0:00:57]} Kd7 {[%emt 0:00:41]} 41. Rf7 {[%emt 0:01:24]} Ke6 {[%emt 0:00:41]} 42. Rxf8 {[%emt 0:00:36]} Bxf8 {[%emt 0:00:10]} 43. Ra1 {[%emt 0:02:21]} Kd7 {[%emt 0:00:19]} 44. Kd2 {[%emt 0:08:43]} Be7 {[%emt 0:00:22]} 45. Ke2 {[%emt 0:01:01]} Kc6 {[%emt 0:01:17]} 46. Rb1 {[%emt 0:01:23]} Rf8 {[%emt 0:00:47]} 47. Be1 {[%emt 0:02:28]} Bd6 {[%emt 0:00:19]} 48. h3 {[%emt 0:02:25]} Be7 {[%emt 0:00:38]} 49. Bg3 {[%emt 0:01:32]} Ra8 {[%emt 0:00:16]} 50. Be1 {[%emt 0:02:15]} Ba3 {[%emt 0:00:34]} 51. Kd1 {[%emt 0:00:44]} Bd6 {[%emt 0:00:22]} 52. Kc2 {[%emt 0:00:54]} Rf8 {[%emt 0:00:12]} 53. Kc3 {[%emt 0:01:57]} Rf1 {[%emt 0:00:32]} 54. Kc2 {[%emt 0:00:58]} Rg1 {[%emt 0:00:25]} 55. a6 {[%emt 0:01:36]} bxa6 {[%emt 0:00:31]} 56. b7 {[%emt 0:00:11]} Rxg2+ {[%emt 0:01:04]} 57. Kc3 {[%emt 0:00:15]} Bb8 {[%emt 0:00:14]} 58. Kb4 {[%emt 0:05:17]} Kxb7 {[%emt 0:00:26]} 59. Kc5+ {[%emt 0:00:05]} Ka7 {[%emt 0:00:46]} 60. Kxd5 {[%emt 0:00:28]} Rg1 {[%emt 0:00:30]} 61. Rc1 {[%emt 0:02:57]} Bg3 {[%emt 0:00:32]} 62. Bd2 {[%emt 0:00:16]} Rxc1 {[%emt 0:00:11]} 63. Bxc1 {[%emt 0:00:45]} c3 {[%emt 0:00:23]} 64. Kxe4 {[%emt 0:00:11]} Be1 {[%emt 0:00:17]} 65. Kd3 {[%emt 0:00:26]} Bd2 {[%emt 0:00:15]} 66. Ba3 {[%emt 0:00:30]} g5 {[%emt 0:00:50]} 67. d5 {[%emt 0:01:58]} Kb6 {[%emt 0:00:25]} 68. Bf8 {[%emt 0:02:50]} h5 {[%emt 0:00:14]} 69. e4 {[%emt 0:01:38]} g4 {[%emt 0:00:48]} 70. hxg4 {[%emt 0:00:19]} hxg4 {[%emt 0:00:33]} 71. Bd6 {[%emt 0:00:27]} Kb7 {[%emt 0:00:40]} 72. Bg3 {[%emt 0:00:54]} Kc8 {[%emt 0:00:52]} 73. e5 {[%emt 0:01:30]} Kd7 {[%emt 0:00:32]} 74. e6+ {[%emt 0:03:25]} Ke7 {[%emt 0:00:15]} 75. Bh4+ {[%emt 0:00:36]} Kd6 {[%emt 0:00:18]} 76. Bg3+ {[%emt 0:01:22]} Ke7 {[%emt 0:00:07]} 77. Bh4+ {[%emt 0:00:21]} Kd6 {[%emt 0:00:44]} 78. Bg3+ {[%emt 0:00:54]} Ke7 {[%emt 0:00:23]} 1/2-1/2

[Event "32nd NATO Championship 2022"]
[Site "Tartu"]
[Date "2022.06.30"]
[Round "6.46"]
[White "Jansen, Lyle John"]
[Black "Coulon, Dominic"]
[Result "0-1"]
[ECO "A01"]
[WhiteElo "1470"]
[BlackElo "1701"]
[Annotator "NA RC"]
[PlyCount "60"]
[EventDate "2022.06.27"]
[EventType "swiss"]
[EventCountry "EST"]
[SourceTitle "playchess.com"]
[Source "ChessBase"]
[SourceQuality "1"]
[TimeControl "5400+30"]

1. b3 {[%emt 0:00:26]} e6 {[%emt 0:01:43]} 2. Bb2 {[%emt 0:00:17]} f5 {[%emt 0:00:52]} 3. e3 {[%emt 0:00:35]} Nf6 {[%emt 0:00:15]} 4. d3 {[%emt 0:01:50]} Be7 {[%emt 0:01:41]} 5. Nf3 {[%emt 0:02:01]} Nc6 {[%emt 0:02:34]} 6. Nbd2 {[%emt 0:01:40]} O-O {[%emt 0:01:32]} 7. Be2 {[%emt 0:00:49]} d6 {[%emt 0:00:46]} 8. e4 {[%emt 0:06:05]} fxe4 {[%emt 0:04:16]} 9. dxe4 {[%emt 0:00:33]} h6 {[%emt 0:05:08]} 10. O-O {[%emt 0:00:26]} e5 {[%emt 0:02:55]} 11. Bc4+ {[%emt 0:03:32]} Kh7 {[%emt 0:01:29]} 12. Re1 {[%emt 0:05:01]} Qe8 {[%emt 0:03:02]} 13. Bd3 {[%emt 0:05:56]} Nh5 {[%emt 0:06:16]} 14. g3 {[%emt 0:02:57]} Qg6 {[%emt 0:01:46]} 15. Kh1 {[%emt 0:08:50]} Bg4 {[%emt 0:12:26]} 16. Be2 {[%emt 0:06:48]} Nf6 {[%emt 0:03:21]} 17. Nh4 {[%emt 0:10:56]} Qh5 {[%emt 0:04:01]} 18. h3 {[%emt 0:02:03]} Bxe2 {[%emt 0:05:01]} 19. Qxe2 {[%emt 0:00:29]} Qxe2 {[%emt 0:01:54]} 20. Rxe2 {[%emt 0:00:08]} g6 {[%emt 0:00:40]} 21. Rd1 {[%emt 0:03:52]} Nh5 {[%emt 0:00:23]} 22. Ndf3 {[%emt 0:02:05]} Rf7 {[%emt 0:00:39]} 23. Bc1 {[%emt 0:02:24]} Raf8 {[%emt 0:00:27]} 24. Rd3 {[%emt 0:02:39]} Ng7 {[%emt 0:00:47]} 25. Kg2 {[%emt 0:07:19]} g5 {[%emt 0:02:11]} 26. Nf5 {[%emt 0:00:15]} Nxf5 {[%emt 0:00:10]} 27. exf5 {[%emt 0:00:26]} Rxf5 {[%emt 0:00:09]} 28. Re4 {[%emt 0:03:00]} d5 {[%emt 0:03:58]} 29. Nxg5+ {[%emt 0:05:19]} Bxg5 {[%emt 0:02:09]} 30. Re2 {[%emt 0:00:56]} Bxc1 {[%emt 0:01:54]} 0-1

[Event "32nd NATO Championship 2022"]
[Site "Tartu"]
[Date "2022.07.01"]
[Round "7.1"]
[White "Stein, Robert"]
[Black "Pavlidis, Anastasios"]
[Result "1/2-1/2"]
[WhiteElo "2365"]
[BlackElo "2296"]
[Annotator "TA"]
[PlyCount "31"]
[EventDate "2022.06.27"]
[EventType "swiss"]
[EventCountry "EST"]
[SourceTitle "playchess.com"]
[Source "ChessBase"]
[SourceQuality "1"]
[TimeControl "5400+30"]

{[%evp 9,18,43,30,42,34,47,35,11,8,-6,2]} 1. d4 {[%emt 0:00:05]} d5 {[%emt 0:01:24]} 2. c4 {[%emt 0:00:45]} e6 {[%emt 0:00:14]} 3. Nf3 {[%emt 0:00:42]} h6 {[%emt 0:00:17]} 4. g3 {[%emt 0:01:22]} Nf6 {[%emt 0:01:28]} 5. Bg2 {[%emt 0:01:33]} Bd6 {[%emt 0:00:38]} 6. O-O {[%emt 0:04:49] D30: Queen's Gambit Declined: Systems without Nc3.} O-O {[%emt 0:00:35]} 7. Nc3 {[%emt 0:03:37]} Nc6 {[%emt 0:01:46]} 8. c5 {[%emt 0:15:10]} Be7 {[%emt 0:00:18]} 9. Bf4 {[%emt 0:03:04]} g5 {[%emt 0:02:16] [#] Black took control after the opening.  Weighted Error Value: White=0.05 (flawless) /Black=0.00 (flawless)} {Predecessor:} 10. Be3 $146 b6 11. cxb6 axb6 12. a3 Na5 13. Qc2 Bb7 14. Ne5 Nd7 15. Ng6 Re8 16. f4 {0-1 (48) Klemettinen,P (2415)-Rynkevich,S (2398) ICCF email 2013} 1/2-1/2